fUST/lending_fUST_20250613
["ID","MTS","AMOUNT","RATE_DAILY","PERIOD"]
[365674825,1749826241736,-460.0,0.00022465,4]
[365674827,1749826241745,-1134.76,0.00022465,4]
[365674829,1749826241754,-460.0,0.00022465,2]
[365674831,1749826241764,-1471.45,0.00022465,4]
[365674833,1749826241772,-1777.83,0.00022465,4]
[365674834,1749826241782,-623.0,0.00022505,2]
[365674836,1749826241791,-891.95514923,0.00022521,7]
[365674838,1749826241801,-1000.0,0.00022553,2]
[365674840,1749826241810,-623.0,0.00022564,2]
[365674842,1749826241820,-521.56263175,0.00022573,2]
[365674844,1749826241829,-623.0,0.0002261,2]
[365674846,1749826241838,-623.0,0.00022612,2]
[365674848,1749826241848,-891.95514923,0.00022624,7]
[365674850,1749826241857,-539.29664791,0.00022629,2]
[365674852,1749826241867,-479.90183394,0.00022629,2]
[365674854,1749826241876,-447.50819112,0.00022658,2]
[365674856,1749826241886,-1304.0,0.00022677,2]
[365674857,1749826241896,-623.0,0.00022693,2]
[365674859,1749826241906,-891.95514923,0.00022728,7]
[365674861,1749826241915,-623.0,0.00022729,2]
[365674863,1749826241928,-158.26670848,0.00022739,4]
[365674865,1749826241937,-587.7,0.00022739,4]
[365674867,1749826241947,-463.1,0.00022739,4]
[365674869,1749826241957,-460.0,0.00022739,4]
[365674871,1749826241969,-634.8,0.00022739,4]
[365674873,1749826241978,-460.0,0.00022739,4]
[365674875,1749826241988,-1503.17,0.00022739,4]
[365674876,1749826241999,-460.0,0.00022739,4]
[365674878,1749826242010,-368.8,0.00022739,4]
[365674880,1749826242019,-460.0,0.00022739,4]
[365674882,1749826242028,-460.0,0.00022739,4]
[365674884,1749826242037,-1801.51,0.00022739,4]
[365674886,1749826242046,-298.62,0.00022739,4]
[365674888,1749826242055,-676.01,0.00022739,4]
[365674890,1749826242064,-668.56,0.00022739,4]
[365674892,1749826242074,-477.78,0.00022739,4]
[365674894,1749826242083,-1356.31,0.00022739,4]
[365674896,1749826242092,-369.98,0.00022739,4]
[365674898,1749826242101,-460.0,0.00022739,4]
[365674899,1749826242111,-2133.31,0.00022739,4]
[365674901,1749826242120,-1037.02,0.00022739,4]
[365674903,1749826242130,-460.0,0.00022739,4]
[365674905,1749826242139,-460.0,0.00022739,4]
[365674907,1749826242148,-993.62,0.00022739,4]
[365674909,1749826242157,-618.38,0.00022739,4]
[365674911,1749826242166,-460.0,0.00022739,4]
[365674913,1749826242175,-1134.76,0.00022739,4]
[365674915,1749826242185,-460.0,0.00022739,2]
[365674917,1749826242194,-1471.45,0.00022739,4]
[365674919,1749826242203,-1777.83,0.00022739,4]
[365674920,1749826242213,-684.65464584,0.00022745,2]
[365674922,1749826242222,-891.95514923,0.00022831,8]
[365674924,1749826242231,-1208.48,0.00022834,2]
[365674926,1749826242241,-178.87756257,0.00022926,2]
[365674928,1749826242251,-5000.0,0.00022926,2]
[365674930,1749826242260,-891.95514923,0.00022934,8]
[365674932,1749826242270,-420.0,0.00022943,2]
[365674934,1749826242286,-160.0,0.00022998,2]
[365674937,1749826242301,-560.98,0.00023003,3]
[365674939,1749826242315,-841.46,0.00023003,3]
[365674941,1749826242326,-420.74,0.00023003,3]
[365674944,1749826242341,-1304.0,0.00023006,2]
[365674946,1749826242354,-460.0,0.00023013,4]
[365674948,1749826242369,-634.8,0.00023013,4]
[365674951,1749826242382,-460.0,0.00023013,4]
[365674953,1749826242396,-1503.17,0.00023013,4]
[365674956,1749826242409,-460.0,0.00023013,4]
[365674960,1749826242424,-460.0,0.00023013,4]
[365674963,1749826242436,-460.0,0.00023013,4]
[365674967,1749826242448,-1801.51,0.00023013,4]
[365674970,1749826242461,-676.01,0.00023013,4]
[365674974,1749826242474,-668.56,0.00023013,4]
[365674978,1749826242487,-1356.31,0.00023013,4]
[365674981,1749826242500,-460.0,0.00023013,4]
[365674987,1749826242514,-2133.31,0.00023013,4]
[365674990,1749826242524,-460.0,0.00023013,4]
[365674993,1749826242537,-1037.02,0.00023013,4]
[365674997,1749826242549,-460.0,0.00023013,4]
[365675001,1749826242562,-993.62,0.00023013,4]
[365675005,1749826242576,-618.38,0.00023013,4]
[365675008,1749826242589,-170.8,0.00023013,4]
[365675012,1749826242603,-1134.76,0.00023013,4]
[365675016,1749826242619,-460.0,0.00023013,2]
[365675020,1749826242633,-1471.45,0.00023013,4]
[365675023,1749826242645,-1777.83,0.00023013,4]
[365675026,1749826242655,-891.95514923,0.00023038,8]
[365675029,1749826242666,-9004.0,0.00023086,3]
[365675032,1749826242679,-835.28007164,0.00023086,3]
[365675037,1749826242693,-229.78555783,0.00023086,3]
[365675040,1749826242707,-424.32678023,0.00023086,3]
[365675043,1749826242718,-844.94977992,0.00023086,3]
[365675045,1749826242731,-160.0,0.00023086,3]
[365675048,1749826242743,-213.24139183,0.00023086,3]
[365675050,1749826242756,-160.0,0.00023086,3]
[365675052,1749826242768,-12531.02669373,0.00023086,3]
[365675054,1749826242780,-1500.0,0.00023101,2]
[365675056,1749826242792,-5000.0,0.00023126,4]
[365675058,1749826242804,-891.95514923,0.00023141,8]
[365675061,1749826242815,-500.0,0.00023156,2]
[365675063,1749826242826,-5000.0,0.00023162,4]
[365675065,1749826242838,-2160.0,0.00023184,2]
[365675067,1749826242849,-774.076,0.00023184,2]
[365675069,1749826242861,-150.341,0.00023184,2]
[365675071,1749826242873,-684.65464584,0.00023213,2]
[365675073,1749826242884,-447.50819112,0.00023213,2]
[365675075,1749826242896,-891.95514923,0.00023245,8]
[365675077,1749826242908,-2125.28,0.00023277,3]
[365675080,1749826242923,-460.0,0.00023287,4]
[365675082,1749826242935,-634.8,0.00023287,4]
[365675084,1749826242947,-460.0,0.00023287,4]
[365675086,1749826242960,-1503.17,0.00023287,4]
[365675088,1749826242972,-460.0,0.00023287,4]
[365675091,1749826242984,-460.0,0.00023287,4]
[365675093,1749826242996,-460.0,0.00023287,4]
[365675095,1749826243007,-1801.51,0.00023287,4]
[365675097,1749826243018,-676.01,0.00023287,4]
[365675099,1749826243029,-668.56,0.00023287,4]
[365675101,1749826243040,-1356.31,0.00023287,4]
[365675103,1749826243051,-460.0,0.00023287,4]
[365675105,1749826243063,-2133.31,0.00023287,4]
[365675107,1749826243075,-460.0,0.00023287,4]
[365675110,1749826243087,-1037.02,0.00023287,4]
[365675114,1749826243098,-460.0,0.00023287,4]
[365675117,1749826243109,-993.62,0.00023287,4]
[365675119,1749826243121,-618.38,0.00023287,4]
[365675121,1749826243133,-1134.76,0.00023287,4]
[365675123,1749826243143,-460.0,0.00023287,2]
[365675125,1749826243156,-1471.45,0.00023287,4]
[365675127,1749826243168,-1777.83,0.00023287,4]
[365675130,1749826243180,-1304.0,0.00023294,2]
[365675132,1749826243191,-166.50369972,0.00023315,2]
[365675134,1749826243203,-166.50369972,0.00023315,2]
[365675136,1749826243214,-891.95514923,0.00023348,9]
[365675138,1749826243226,-891.95514923,0.00023452,9]
[365675140,1749826243237,-500.0,0.00023473,2]
[365675143,1749826243248,-500.0,0.00023473,2]
[365675145,1749826243260,-500.0,0.00023473,2]
[365675147,1749826243271,-5000.0,0.00023474,2]
[365675149,1749826243282,-153396.84746657,0.00023491,2]
[365675151,1749826243294,-23234.24844158,0.000235,2]
[365675153,1749826243306,-5426.0,0.000235,2]
[365675155,1749826243316,-5426.0,0.000235,2]
[365675157,1749826243326,-5426.0,0.000235,2]
[365675159,1749826243335,-5426.0,0.000235,2]
[365675161,1749826243345,-5426.0,0.000235,2]
[365675163,1749826243354,-5426.0,0.000235,2]
[365675165,1749826243364,-442.62766673,0.00023501,2]
[365675167,1749826243374,-160.0,0.00023507,4]
[365675183,1749826243517,-2037.456996,0.0002351,3]
[365675185,1749826243529,-891.95514923,0.00023555,9]
[365675187,1749826243540,-460.0,0.00023561,4]
[365675189,1749826243549,-634.8,0.00023561,4]
[365675191,1749826243558,-283.86,0.00023561,4]
[365675193,1749826243568,-1503.17,0.00023561,4]
[365675195,1749826243577,-460.0,0.00023561,4]
[365675197,1749826243586,-336.31,0.00023561,4]
[365675199,1749826243595,-460.0,0.00023561,4]
[365675201,1749826243604,-1801.51,0.00023561,4]
[365675203,1749826243615,-676.01,0.00023561,4]
[365675205,1749826243625,-668.56,0.00023561,4]
[365675207,1749826243634,-1356.31,0.00023561,4]
[365675208,1749826243643,-460.0,0.00023561,4]
[365675210,1749826243653,-2133.31,0.00023561,4]
[365675212,1749826243663,-460.0,0.00023561,4]
[365675214,1749826243672,-1037.02,0.00023561,4]
[365675216,1749826243682,-460.0,0.00023561,4]
[365675218,1749826243691,-993.62,0.00023561,4]
[365675220,1749826243701,-618.38,0.00023561,4]
[365675222,1749826243710,-1134.76,0.00023561,4]
[365675224,1749826243719,-460.0,0.00023561,2]
[365675226,1749826243729,-1471.45,0.00023561,4]
[365675228,1749826243738,-1777.83,0.00023561,4]
[365675230,1749826243749,-1304.0,0.00023596,2]
[365675232,1749826243758,-1304.0,0.00023622,2]
[365675234,1749826243767,-2000.0,0.00023649,2]
[365675236,1749826243777,-891.95514923,0.00023659,9]
[365675238,1749826243786,-684.65464584,0.0002368,2]
[365675240,1749826243795,-167.40932512,0.0002368,2]
[365675242,1749826243804,-151.0,0.000237,6]
[365675243,1749826243814,-6888.13748271,0.000237,2]
[365675245,1749826243823,-215.0738,0.00023747,2]
[365675247,1749826243833,-891.95514923,0.00023762,9]
[365675249,1749826243843,-800.0,0.00023763,2]
[365675251,1749826243852,-447.50819112,0.00023767,2]
[365675253,1749826243862,-587.0,0.00023768,2]
[365675255,1749826243871,-500.0,0.00023773,2]
[365675257,1749826243881,-500.0,0.00023773,2]
[365675259,1749826243890,-501.98508171,0.00023773,2]
[365675261,1749826243900,-227.42880251,0.00023773,2]
[365675263,1749826243910,-310.26841365,0.00023773,2]
[365675265,1749826243929,-539.80823797,0.00023773,2]
[365675267,1749826243938,-500.0,0.00023773,2]
[365675269,1749826243947,-500.0,0.00023773,2]
[365675271,1749826243956,-503.48503408,0.00023773,2]
[365675272,1749826243966,-500.0,0.00023773,2]
[365675273,1749826243975,-503.34321714,0.00023773,2]
[365675274,1749826243984,-500.0,0.00023773,2]
[365675275,1749826243994,-500.0,0.00023773,2]
[365675276,1749826244003,-500.0,0.00023773,2]
[365675277,1749826244013,-500.0,0.00023773,2]
[365675278,1749826244023,-500.99252369,0.00023773,2]
[365675279,1749826244032,-500.0,0.00023773,2]
[365675280,1749826244041,-600.0,0.00023773,2]
[365675281,1749826244050,-500.0,0.00023773,2]
[365675282,1749826244060,-151.0,0.00023779,2]
[365675283,1749826244069,-10736.12743952,0.0002378,7]
[365675284,1749826244172,-1509.04651827,0.0002378,7]
[365675285,1749826244183,-1226.25896327,0.0002378,5]
[365675286,1749826244359,-166746.72189286,0.0002378,5]
[365675287,1749826244371,-42095.33201581,0.0002378,5]
[365675288,1749826244387,-1302.40698985,0.0002378,5]
[365675289,1749826244461,-1870.17393402,0.0002378,5]
[365675290,1749826244474,-500.0,0.0002378,5]
[365675453,1749826246065,-451.52153784,0.00021095,4]
[365675455,1749826246077,-794.61036573,0.00021095,4]
[365675856,1749826721926,-4000000.0,0.00024969,60]
[365675987,1749826730476,-1500.0,0.00024,120]
[365675988,1749826730507,-4107.0,0.00024,120]
[365675990,1749826730559,-2000.0,0.000244,120]
[365675992,1749826730591,-2000.0,0.000246,120]
[365676174,1749826741889,-2075937.38797593,0.00024969,60]
[365677279,1749826816559,830.5702,0.00024969,60]
[365680024,1749827023344,160.954004,0.00013699,2]
[365680125,1749827074337,6332.016765,0.00024975,60]
[365680126,1749827078721,967.34,0.00024975,60]
[365680130,1749827102222,500.0,0.00023,120]
[365680131,1749827102991,500.0,0.00023,120]
[365680132,1749827103217,1939.04631132,0.00024975,120]
[365680133,1749827103787,500.0,0.00023,120]
[365680135,1749827104886,500.0,0.00023,120]
[365680136,1749827105590,500.0,0.00023,120]
[365680137,1749827106374,500.0,0.00023,120]
[365680138,1749827107156,500.0,0.00023,120]
[365680139,1749827107928,500.0,0.00023,120]
[365680140,1749827108701,500.0,0.00023,120]
[365680141,1749827109474,500.0,0.00023,120]
[365680142,1749827110245,500.0,0.00023,120]
[365680143,1749827111027,500.0,0.00023,120]
[365680144,1749827111830,500.0,0.00023,120]
[365680145,1749827112628,500.0,0.00023,120]
[365680146,1749827113443,500.0,0.00023,120]
[365680147,1749827114235,500.0,0.00023,120]
[365680148,1749827115010,500.0,0.00023,120]
[365680149,1749827115788,500.0,0.00023,120]
[365680150,1749827116558,500.0,0.00023,120]
[365680151,1749827117613,500.0,0.00023,120]
[365680152,1749827118491,500.0,0.00023,120]
[365680153,1749827119263,500.0,0.00023,120]
[365680154,1749827120130,500.0,0.00023,120]
[365680155,1749827120919,500.0,0.00023,120]
[365680156,1749827121712,500.0,0.00023,120]
[365680157,1749827122935,500.0,0.00023,120]
[365680158,1749827123730,500.0,0.00023,120]
[365680159,1749827124533,500.0,0.00023,120]
[365680160,1749827125296,500.0,0.00023,120]
[365680161,1749827126082,500.0,0.00023,120]
[365680162,1749827127131,500.0,0.00023,120]
[365680163,1749827127900,500.0,0.00023,120]
[365680165,1749827128826,500.0,0.00023,120]
[365680166,1749827129571,500.0,0.00023,120]
[365680167,1749827130397,500.0,0.00023,120]
[365680169,1749827131169,500.0,0.00023,120]
[365680170,1749827131939,150.5,0.0002328,120]
[365680171,1749827131974,500.0,0.00023,120]
[365680172,1749827132409,150.5,0.0002328,120]
[365680173,1749827132444,150.5,0.0002327,120]
[365680176,1749827132853,269.99,0.0002327,120]
[365680177,1749827132929,269.93,0.0002326,120]
[365680178,1749827132975,500.0,0.00023,120]
[365680181,1749827133752,500.0,0.00023,120]
[365680182,1749827134518,500.0,0.00023,120]
[365680183,1749827135328,500.0,0.00023,120]
[365680184,1749827136121,500.0,0.00023,120]
[365680185,1749827136895,500.0,0.00023,120]
[365680186,1749827137662,500.0,0.00023,120]
[365680187,1749827138431,500.0,0.00023,120]
[365680189,1749827139191,500.0,0.00023,120]
[365680190,1749827139964,500.0,0.00023,120]
[365680191,1749827140737,500.0,0.00023,120]
[365680192,1749827141517,500.0,0.00023,120]
[365680193,1749827142487,500.0,0.00023,120]
[365680194,1749827143263,500.0,0.00023,120]
[365680195,1749827144039,500.0,0.00023,120]
[365680196,1749827144804,500.0,0.00023,120]
[365680197,1749827144856,-383.43449387,0.000209,2]
[365680198,1749827144885,-500.0,0.00020964,2]
[365680199,1749827144909,-152.809,0.00020999,2]
[365680200,1749827144935,-300.0,0.00020999,2]
[365680201,1749827144960,-300.0,0.00020999,2]
[365680202,1749827144985,-2848.97450613,0.00021,3]
[365680203,1749827145018,-4485.218,0.00021,3]
[365680204,1749827145147,-4485.218,0.00021,3]
[365680205,1749827145558,-4485.218,0.00021,3]
[365680206,1749827145594,-160.35747014,0.00020805,5]
[365680207,1749827145618,-3695.37149387,0.00021,3]
[365680208,1749827145641,-160.0,0.00021,3]
[365680209,1749827145665,-469.48903599,0.00021,3]
[365680210,1749827145708,500.0,0.00023,120]
[365680211,1749827145737,-375.46074393,0.00021,3]
[365680212,1749827145761,-4109.75725607,0.00021,3]
[365680213,1749827145796,-4485.218,0.00021,3]
[365680214,1749827145840,-3936.05143766,0.00021,3]
[365680215,1749827146353,500.0,0.00023,120]
[365680216,1749827147140,500.0,0.00023,120]
[365680217,1749827148117,500.0,0.00023,120]
[365680218,1749827148893,500.0,0.00023,120]
[365680219,1749827149581,160.76459632,0.00020805,5]
[365680220,1749827149683,500.0,0.00023,120]
[365680221,1749827150451,500.0,0.00023,120]
[365680222,1749827151280,500.0,0.00023,120]
[365680223,1749827152095,500.0,0.00023,120]
[365680224,1749827152932,500.0,0.00023,120]
[365680225,1749827154167,500.0,0.00023,120]
[365680227,1749827155006,500.0,0.00023,120]
[365680228,1749827155828,500.0,0.00023,120]
[365680229,1749827156553,500.0,0.00023,120]
[365680230,1749827157354,500.0,0.00023,120]
[365680231,1749827158576,500.0,0.00023,120]
[365680234,1749827159351,500.0,0.00023,120]
[365680235,1749827160140,500.0,0.00023,120]
[365680236,1749827160925,500.0,0.00023,120]
[365680237,1749827161713,500.0,0.00023,120]
[365680238,1749827162805,500.0,0.00023,120]
[365680239,1749827163588,435.23,0.00023,120]
[365680315,1749827228589,388.40196602,0.00020964,2]
[365680382,1749827251689,200.0,0.00024029,120]
[365680424,1749827275322,-1820.686,0.00020138,2]
[365680426,1749827275478,-1820.686,0.00020138,2]
[365680427,1749827275614,-1820.686,0.00020138,2]
[365680429,1749827275760,-1820.686,0.00020138,2]
[365680430,1749827275900,-706.8802678,0.00020138,2]
[365680431,1749827275927,-111.59803398,0.00020964,2]
[365680432,1749827275952,-335.50518218,0.00020995,2]
[365680434,1749827275978,-191.43,0.00021085,10]
[365680435,1749827276003,-300.0,0.00021093,2]
[365680436,1749827276027,-175.27251604,0.00021093,2]
[365680780,1749827371214,200.0,0.00023875,120]
[365681006,1749827431135,200.0,0.00023745,120]
[365681015,1749827432120,-243.75,0.00021085,10]
[365681018,1749827432131,-203.12,0.00021085,10]
[365681020,1749827432142,-300.0,0.00021093,2]
[365681022,1749827432152,-981.72583137,0.00021094,2]
[365681024,1749827432163,-509.97905134,0.00021094,2]
[365681026,1749827432174,-500.0,0.00021094,2]
[365681028,1749827432184,-168.9265973,0.00021094,2]
[365681030,1749827432195,-500.0,0.00021094,2]
[365681032,1749827432206,-500.0,0.00021094,2]
[365681034,1749827432216,-500.0,0.00021094,2]
[365681036,1749827432227,-349.1237841,0.00021094,2]
[365681038,1749827432237,-500.0,0.00021094,2]
[365681040,1749827432250,-500.0,0.00021094,2]
[365681042,1749827432261,-500.0,0.00021094,2]
[365681044,1749827432271,-500.0,0.00021094,2]
[365681046,1749827432282,-500.0,0.00021094,2]
[365681048,1749827432292,-173.99630986,0.00021094,2]
[365681050,1749827432302,-500.0,0.00021094,2]
[365681052,1749827432312,-207.56004478,0.00021094,2]
[365681054,1749827432324,-500.0,0.00021094,2]
[365681056,1749827432336,-499.99999999,0.00021094,2]
[365681058,1749827432347,-156.9977156,0.00021094,2]
[365681060,1749827432357,-500.0,0.00021094,2]
[365681062,1749827432367,-487.58305725,0.00021094,2]
[365681064,1749827432378,-500.0,0.00021094,2]
[365681066,1749827432388,-500.0,0.00021094,2]
[365681067,1749827432398,-500.0,0.00021094,2]
[365681069,1749827432408,-500.0,0.00021094,2]
[365681071,1749827432419,-500.0,0.00021094,2]
[365681073,1749827432429,-500.0,0.00021094,2]
[365681075,1749827432440,-500.0,0.00021094,2]
[365681077,1749827432450,-276.86354343,0.00021094,2]
[365681082,1749827432480,-223.13645657,0.00021094,2]
[365681084,1749827432490,-500.0,0.00021094,2]
[365681086,1749827432503,-500.0,0.00021094,2]
[365681088,1749827432513,-500.0,0.00021094,2]
[365681090,1749827432523,-500.0,0.00021094,2]
[365681092,1749827432533,-500.0,0.00021094,2]
[365681094,1749827432543,-500.0,0.00021094,2]
[365681096,1749827432554,-500.0,0.00021094,2]
[365681098,1749827432565,-500.0,0.00021094,2]
[365681099,1749827432576,-500.0,0.00021094,2]
[365681100,1749827432586,-221.58192992,0.00021094,2]
[365681101,1749827432596,-500.0,0.00021094,2]
[365681102,1749827432606,-500.0,0.00021094,2]
[365681103,1749827432616,-500.0,0.00021094,2]
[365681104,1749827432626,-500.0,0.00021094,2]
[365681105,1749827432636,-500.0,0.00021094,2]
[365681106,1749827432647,-500.0,0.00021094,2]
[365681107,1749827432658,-500.0,0.00021094,2]
[365681108,1749827432668,-500.0,0.00021094,2]
[365681109,1749827432678,-500.0,0.00021094,2]
[365681110,1749827432688,-500.0,0.00021094,2]
[365681111,1749827432698,-250.0,0.00021094,2]
[365681113,1749827432708,-440.0,0.00021095,4]
[365681116,1749827432718,-460.0,0.00021095,4]
[365681117,1749827432728,-440.0,0.00021095,4]
[365681119,1749827432738,-440.0,0.00021095,4]
[365681121,1749827432751,-440.0,0.00021095,4]
[365681122,1749827432763,-460.0,0.00021095,4]
[365681123,1749827432773,-460.0,0.00021095,4]
[365681124,1749827432783,-460.0,0.00021095,4]
[365681125,1749827432793,-430.0,0.00021095,4]
[365681126,1749827432803,-460.0,0.00021095,4]
[365681127,1749827432813,-460.0,0.00021095,4]
[365681128,1749827432823,-263.007722,0.00021095,4]
[365681129,1749827432833,-260.71566167,0.00021095,4]
[365681130,1749827432843,-480.62177314,0.00021095,4]
[365681131,1749827432853,-541.7,0.00021095,4]
[365681132,1749827432863,-440.0,0.00021095,4]
[365681133,1749827432874,-440.0,0.00021095,4]
[365681134,1749827432884,-460.0,0.00021095,4]
[365681135,1749827432894,-460.0,0.00021095,4]
[365681136,1749827432904,-440.0,0.00021095,4]
[365681137,1749827432914,-440.0,0.00021095,4]
[365681138,1749827432924,-48.27027128,0.00021095,4]
[365681139,1749827433102,-391.72972872,0.00021095,4]
[365681140,1749827433113,-207.61256928,0.00021095,4]
[365681141,1749827433125,-316.45388506,0.00021095,4]
[365681142,1749827433136,-440.0,0.00021095,4]
[365681143,1749827433147,-460.0,0.00021095,4]
[365681144,1749827433158,-460.0,0.00021095,4]
[365681146,1749827433168,-440.0,0.00021095,4]
[365681147,1749827433178,-440.0,0.00021095,4]
[365681148,1749827433188,-440.0,0.00021095,4]
[365681149,1749827433199,-460.0,0.00021095,4]
[365681150,1749827433209,-460.0,0.00021095,4]
[365681151,1749827433219,-460.0,0.00021095,4]
[365681152,1749827433229,-440.0,0.00021095,4]
[365681153,1749827433239,-460.0,0.00021095,4]
[365681154,1749827433251,-460.0,0.00021095,4]
[365681155,1749827433262,-440.0,0.00021095,4]
[365681156,1749827433272,-460.0,0.00021095,4]
[365681157,1749827433283,-440.0,0.00021095,4]
[365681158,1749827433295,-440.0,0.00021095,4]
[365681159,1749827433305,-396.00904347,0.00021095,4]
[365681160,1749827433315,-460.0,0.00021095,4]
[365681161,1749827433331,-460.0,0.00021095,4]
[365681162,1749827433342,-440.0,0.00021095,4]
[365681163,1749827433353,-460.0,0.00021095,4]
[365681164,1749827433363,-460.0,0.00021095,4]
[365681165,1749827433375,-440.0,0.00021095,4]
[365681167,1749827433529,-440.0,0.00021095,4]
[365681168,1749827433539,-460.0,0.00021095,4]
[365681169,1749827433549,-460.0,0.00021095,4]
[365681170,1749827433559,-460.0,0.00021095,4]
[365681171,1749827433570,-497.13,0.00021095,4]
[365681172,1749827433581,-440.0,0.00021095,4]
[365681173,1749827433591,-460.0,0.00021095,4]
[365681174,1749827433603,-460.0,0.00021095,4]
[365681175,1749827433619,-649.71,0.00021095,4]
[365681176,1749827433635,-460.0,0.00021095,4]
[365681177,1749827433646,-718.19,0.00021095,4]
[365681178,1749827433657,-460.0,0.00021095,4]
[365681179,1749827433668,-460.0,0.00021095,4]
[365681180,1749827433679,-460.0,0.00021095,4]
[365681181,1749827433689,-360.39195059,0.00021095,4]
[365681182,1749827433700,-1945.04,0.00021095,4]
[365681183,1749827433711,-460.0,0.00021095,4]
[365681185,1749827433722,-500.0,0.00021095,4]
[365681186,1749827433732,-460.0,0.00021095,4]
[365681187,1749827433743,-460.0,0.00021095,4]
[365681188,1749827433758,-460.0,0.00021095,4]
[365681189,1749827433768,-460.0,0.00021095,4]
[365681190,1749827433779,-489.15,0.00021095,4]
[365681191,1749827433790,-460.0,0.00021095,4]
[365681192,1749827433801,-460.0,0.00021095,4]
[365681193,1749827433813,-460.0,0.00021095,4]
[365681194,1749827433825,-460.0,0.00021095,4]
[365681195,1749827433836,-460.0,0.00021095,4]
[365681196,1749827433848,-738.23,0.00021095,4]
[365681197,1749827433859,-460.0,0.00021095,4]
[365681198,1749827433870,-460.0,0.00021095,4]
[365681199,1749827433881,-460.0,0.00021095,4]
[365681200,1749827433891,-460.0,0.00021095,4]
[365681201,1749827433902,-460.0,0.00021095,4]
[365681202,1749827433914,-426.7427292,0.00021095,4]
[365681203,1749827433924,-460.0,0.00021095,4]
[365681204,1749827433935,-440.0,0.00021095,4]
[365681205,1749827433946,-460.0,0.00021095,4]
[365681206,1749827433957,-460.0,0.00021095,4]
[365681207,1749827433966,-430.0,0.00021095,4]
[365681209,1749827433977,-460.0,0.00021095,4]
[365681210,1749827433988,-460.0,0.00021095,4]
[365681211,1749827434004,-403.6123643,0.00021095,4]
[365681212,1749827434015,-460.0,0.00021095,4]
[365681213,1749827434025,-421.49947815,0.00021095,4]
[365681214,1749827434035,-440.0,0.00021095,4]
[365681215,1749827434046,-440.0,0.00021095,4]
[365681216,1749827434056,-460.0,0.00021095,4]
[365681217,1749827434068,-460.0,0.00021095,2]
[365681218,1749827434079,-460.0,0.00021095,4]
[365681219,1749827434089,-460.0,0.00021095,4]
[365681220,1749827434099,-420.0,0.00021095,4]
[365681221,1749827434109,-460.0,0.00021095,4]
[365681222,1749827434120,-460.0,0.00021095,4]
[365681223,1749827434131,-1621.77,0.00021095,4]
[365681224,1749827434142,-460.0,0.00021095,4]
[365681225,1749827434153,-460.0,0.00021095,4]
[365681226,1749827434165,-460.0,0.00021095,4]
[365681227,1749827434175,-460.0,0.00021095,4]
[365681228,1749827434186,-460.0,0.00021095,4]